bitfinex-derivatives/quotes_ETHF0:USTF0_20250804
["timestamp","ask_amount","ask_price","bid_price","bid_amount"]
[1754316591225,22.108,3646.0,3645.8,2.4536]
[1754316591420,22.108,3646.0,3645.8,3.529]
[1754316591617,1.0,3646.0,3645.9,3.529]
[1754316595623,1.0,3646.0,3645.9,2.4536]
[1754316596017,1.0,3646.0,3645.9,3.529]
[1754316596428,1.0,3646.0,3645.6,4.57919]
[1754316596429,1.96631,3645.9,3645.7,0.54854]
[1754316596621,1.061,3645.8,3645.7,0.54854]
[1754316596821,1.061,3645.8,3645.7,1.49404]
[1754316597021,1.061,3645.8,3645.7,0.9455]
[1754316597222,2.4788,3645.8,3645.7,0.9455]
[1754316597430,3.02734,3645.8,3645.6,3.75635]
[1754316597629,0.54852,3645.9,3645.8,0.54852]
[1754316598023,0.54854,3645.8,3645.7,0.54853]
[1754316598226,3.02734,3645.8,3645.7,0.54853]
[1754316598531,2.4788,3645.8,3645.7,0.54853]
[1754316598723,1.60958,3645.5,3645.1,3.2078]
[1754316599029,2.4788,3645.4,3645.3,0.5486]
[1754316599328,3.91789,3645.4,3645.3,0.5486]
[1754316599530,0.8905,3645.4,3645.3,0.5486]
[1754316599920,0.54858,3645.5,3645.3,0.5486]
[1754316600118,3.3693,3645.4,3645.3,0.5486]
[1754316600325,0.5486,3645.3,3645.1,3.75643]
[1754316600527,2.4788,3645.2,3645.1,3.75643]
[1754316600722,3.02738,3645.5,3645.4,1.49409]
[1754316600928,2.4788,3645.2,3645.1,3.75643]
[1754316601129,3.3693,3645.2,3645.1,3.75643]
[1754316601330,1.0,3646.0,3645.6,0.54854]
[1754316601523,21.64053,3645.8,3645.7,3.529]
[1754316601729,3.02742,3645.2,3645.1,3.2078]
[1754316601931,1.96648,3644.8,3644.7,3.75649]
[1754316602233,3.91798,3644.8,3644.7,3.2078]
[1754316602627,3.3693,3644.8,3644.7,3.2078]
[1754316602932,1.60966,3645.0,3644.8,0.54868]
[1754316603125,1.60966,3645.0,3644.9,0.9455]
[1754316603327,21.09,3645.2,3645.1,3.529]
[1754316603525,21.09,3645.2,3644.7,3.2078]
[1754316603526,0.54867,3644.9,3644.7,3.2078]
[1754316603729,3.3693,3644.8,3644.7,3.2078]
[1754316605427,3.3693,3644.8,3644.3,3.2078]
[1754316605638,3.91804,3644.4,3644.3,3.2078]
[1754316606023,25.82819,3644.4,3643.9,0.54881]
[1754316606231,21.087,3644.4,3643.9,0.54881]
[1754316606434,2.3083,3644.1,3643.9,0.54881]
[1754316606729,2.4788,3644.1,3643.9,0.54881]
[1754316606931,0.8905,3644.5,3644.1,1.37197]
[1754316607233,1.4178,3644.3,3644.2,0.54877]
[1754316607431,0.54875,3644.4,3644.2,0.54876]
[1754316607733,0.5487,3644.7,3644.4,0.54873]
[1754316607931,0.8905,3645.0,3644.5,3.2078]
[1754316608237,21.086,3644.9,3644.5,3.2078]
[1754316608529,1.4178,3644.7,3644.5,3.2078]
[1754316608742,21.084,3645.0,3644.7,2.5835]
[1754316608935,24.4533,3645.0,3644.5,3.75651]
[1754316609233,0.8905,3644.8,3644.6,0.54871]
[1754316609435,1.43921,3644.7,3644.5,4.70201]
[1754316609638,3.2078,3645.5,3644.5,5.6614]
[1754316609932,40.9148,3645.8,3645.3,1.5081]
[1754316610130,42.8841,3645.8,3645.6,0.54855]
[1754316610325,2.5092,3645.7,3645.6,1.43905]
[1754316610542,23.5922,3645.7,3645.6,0.8905]
[1754316610833,23.5922,3645.7,3645.2,3.75641]
[1754316610834,0.54857,3645.5,3645.2,3.75641]
[1754316611034,3.4245,3645.3,3644.9,0.54865]
[1754316611239,1.37141,3645.6,3644.8,0.54867]
[1754316611426,3.4245,3644.9,3644.7,3.75649]
[1754316611733,2.5092,3644.8,3644.7,4.0983]
[1754316612339,2.5092,3644.8,3644.7,4.64699]
[1754316613732,2.5092,3644.8,3644.7,4.0983]
[1754316614031,2.5092,3644.8,3644.7,3.2078]
[1754316614240,24.5045,3644.8,3644.7,3.2078]
[1754316614629,2.00399,3644.1,3644.0,3.2078]
[1754316614840,0.54885,3643.7,3643.6,3.2078]
[1754316615031,0.54892,3643.2,3643.1,4.0983]
[1754316615232,2.5092,3643.1,3642.8,1.9747]
[1754316615430,0.54895,3643.0,3642.8,2.2694]
[1754316615635,0.54895,3643.0,3642.6,3.2078]
[1754316615636,0.9153,3643.2,3642.9,2.2694]
[1754316615832,3.2078,3643.4,3643.0,0.54895]
[1754316616042,21.075,3643.3,3643.1,3.3536]
[1754316616244,0.54894,3643.1,3642.7,1.92789]
[1754316616448,21.075,3643.3,3642.8,0.54897]
[1754316616449,0.54893,3643.2,3642.8,0.54897]
[1754316616637,2.5092,3643.1,3642.8,2.81837]
[1754316616941,2.5092,3643.1,3642.9,0.8905]
[1754316617342,2.5092,3643.0,3642.9,0.8905]
[1754316617641,21.074,3643.5,3643.3,2.2694]
[1754316617840,2.5092,3643.4,3643.1,2.2694]
[1754316618136,21.072,3643.3,3643.2,2.2694]
[1754316618331,3.97342,3643.2,3643.0,3.2078]
[1754316618532,2.5092,3643.1,3643.0,3.2078]
[1754316618736,21.072,3643.3,3643.0,4.64725]
[1754316619037,21.072,3643.3,3643.1,0.8905]
[1754316619038,23.5812,3643.3,3643.1,0.8905]
[1754316619233,6.26575,3644.4,3643.3,1.9747]
[1754316619439,2.34279072,3645.0,3643.0,4.58017]
[1754316619440,1.054,3645.0,3644.6,0.5487]
[1754316619637,0.54868,3644.8,3644.7,2.2694]
[1754316619835,0.68518511,3644.8,3644.7,2.2694]
[1754316620042,3.97325,3644.3,3644.2,3.2078]
[1754316620243,3.93442,3643.9,3643.8,3.2078]
[1754316620542,21.071,3643.9,3643.8,6.5614]
[1754316620841,24.4566,3643.9,3643.8,3.2078]
[1754316621038,3.3856,3643.9,3643.8,3.2078]
[1754316621244,24.4556,3643.9,3643.8,3.2078]
[1754316621439,3.3856,3643.4,3643.3,3.2078]
[1754316621646,24.4556,3643.4,3643.3,3.2078]
[1754316622240,23.4405,3643.4,3642.9,3.2078]
[1754316622442,0.54891,3643.3,3642.9,3.2078]
[1754316622637,3.3856,3643.2,3643.0,1.43944]
[1754316622839,3.3856,3643.2,3643.0,0.8905]
[1754316623037,3.3856,3643.2,3643.0,1.43945]
[1754316623245,21.069,3643.1,3643.0,1.9747]
[1754316623446,23.5393,3643.1,3642.9,0.54895]
[1754316623640,23.5393,3643.1,3642.8,0.54897]
[1754316623837,23.5393,3643.1,3643.0,0.54895]
[1754316624442,2.4703,3643.1,3643.0,0.54895]
[1754316624744,0.54887,3643.6,3643.0,0.54895]
[1754316624745,2.4703,3643.4,3643.1,3.3536]
[1754316625046,22.5212,3643.3,3643.1,1.9747]
[1754316625339,22.5212,3643.3,3642.9,3.75676]
[1754316625340,2.4703,3643.2,3643.0,0.54894]
[1754316625541,3.75659,3644.1,3643.7,0.54884]
[1754316625743,0.54883,3643.8,3643.3,4.0983]
[1754316625938,3.3856,3643.4,3643.3,3.2078]
[1754316626133,24.4516,3643.4,3643.3,3.2078]
[1754316626641,22.9964,3643.4,3643.3,3.75671]
[1754316626841,1.0151,3643.4,3643.3,5.4772]
[1754316627040,0.54882,3643.9,3643.5,0.54886]
[1754316627338,2.00407,3643.6,3643.4,0.8905]
[1754316627534,1.0151,3643.7,3643.5,3.3536]
[1754316627735,3.01916,3643.7,3643.5,3.3536]
[1754316627936,4.1231,3644.1,3643.8,0.54882]
[1754316628143,4.1231,3644.1,3643.3,4.58004]
[1754316628144,0.54889,3643.5,3643.3,4.292]
[1754316628344,0.54887,3643.6,3643.4,1.9747]
[1754316628643,1.4552,3643.4,3643.2,1.9747]
[1754316628837,0.54892,3643.2,3642.8,2.52367]
[1754316629041,1.4552,3643.1,3642.9,1.9747]
[1754316629238,0.54893,3643.2,3643.0,0.8905]
[1754316629438,1.9304,3643.1,3643.0,0.54894]
[1754316629742,0.54891,3643.3,3643.2,2.2694]
[1754316630038,1.4552,3643.2,3643.1,1.0842]
[1754316630239,2.00414,3643.1,3642.8,0.54897]
[1754316630445,21.061,3643.0,3642.9,0.8905]
[1754316630643,2.82762,3642.9,3642.2,2.4631]
[1754316630846,0.54915,3641.7,3641.6,0.8905]
[1754316631141,23.06334,3641.8,3641.6,1.9747]
[1754316631338,22.62324,3641.8,3641.6,1.9747]
[1754316631539,1.4552,3641.7,3641.6,1.9747]
[1754316631735,1.4552,3641.7,3641.5,0.54916]
[1754316632056,23.53854,3641.8,3641.1,0.54924]
[1754316632057,0.54916,3641.6,3641.1,0.54924]
[1754316632252,0.54918,3641.5,3641.1,3.3536]
[1754316632543,21.057,3641.4,3641.3,2.4631]
[1754316632844,21.057,3641.4,3641.0,3.2078]
[1754316632845,24.07649,3641.4,3641.0,3.2078]
[1754316633149,1.4552,3641.3,3640.7,1.9747]
[1754316633450,1.4552,3641.3,3641.1,0.54923]
[1754316633641,21.057,3641.4,3641.3,3.90281]
[1754316633842,21.057,3641.9,3641.4,1.3789]
[1754316634147,3.2078,3642.4,3641.6,3.2078]
[1754316634346,3.2078,3642.4,3641.7,3.3536]
[1754316634552,0.54907,3642.2,3642.0,0.5491]
[1754316634853,3.2078,3642.4,3642.2,2.81847]
[1754316635144,3.2078,3642.4,3642.3,3.3536]
[1754316635347,2.4703,3642.7,3642.3,3.90266]
[1754316635541,21.055,3642.6,3642.5,3.90263]
[1754316635742,3.75671,3643.3,3642.9,0.54896]
[1754316635938,3.75671,3643.3,3641.0,2.74622]
[1754316635939,3.2078,3643.3,3643.2,3.3536]
[1754316636146,3.75654,3644.4,3643.4,1.3722]
[1754316636343,21.18982195,3644.3,3643.9,2.4631]
[1754316636544,1.59202195,3644.2,3644.0,0.8905]
[1754316636849,21.60176,3644.3,3643.9,2.4631]
[1754316636850,3.15590195,3644.1,3643.9,1.0842]
[1754316637045,0.13682195,3644.0,3643.8,0.54883]
[1754316637244,0.5488,3644.0,3643.5,0.54888]
[1754316637451,0.13682195,3644.0,3643.9,3.90242]
[1754316637649,21.052,3644.1,3643.9,3.01192]
[1754316637851,3.2078,3644.4,3644.3,0.54875]
[1754316638150,0.13672827,3644.4,3644.3,0.54875]
[1754316638456,21.051,3644.6,3644.3,3.90235]
[1754316638646,3.2078,3644.8,3644.7,0.54869]
[1754316638846,24.2578,3644.8,3644.7,3.3536]
[1754316639246,3.2078,3644.8,3644.7,3.3536]
[1754316639441,24.2578,3644.8,3644.7,3.3536]
[1754316639647,24.80649,3644.8,3644.3,0.54875]
[1754316639850,1.4552,3644.7,3644.5,3.90232]
[1754316640052,3.2078,3644.8,3644.6,1.9181]
[1754316640348,2.95661,3644.6,3644.3,0.54875]
[1754316640549,3.3322,3644.6,3644.3,0.54875]
[1754316640750,0.9243,3644.6,3644.3,0.54875]
[1754316640951,2.4079,3644.5,3644.3,1.42015]
[1754316641252,1.034,3644.5,3644.3,0.8714]
[1754316641553,21.046,3644.7,3644.6,2.2566]
[1754316641956,3.2078,3644.8,3644.7,3.2842]
[1754316642255,24.2498,3644.8,3644.7,3.2842]
[1754316642753,24.2488,3644.8,3644.7,3.2842]
[1754316642953,3.2078,3644.8,3644.7,3.2842]
[1754316643149,39.527,3645.0,3644.8,0.54868]
[1754316643356,3.2078,3645.4,3645.3,3.2842]
[1754316643654,24.2448,3645.4,3645.3,3.2842]
[1754316643853,0.9243,3645.9,3645.4,0.54858]
[1754316644154,21.036,3645.8,3645.7,3.2842]
[1754316644454,4.7563,3646.0,3645.7,3.2842]
[1754316644455,4.2078,3646.0,3645.7,2.4128]
[1754316644650,21.036,3645.9,3645.8,3.2842]
[1754316644850,22.4099,3645.9,3645.4,1.0276]
[1754316645049,1.3739,3645.5,3645.3,1.3852]
[1754316645249,22.4079,3645.5,3645.3,1.3852]
[1754316645448,1.034,3645.4,3645.3,2.2566]
[1754316645648,0.54853,3645.8,3645.4,0.54858]
[1754316645857,21.033,3645.7,3645.5,3.2842]
[1754316646051,0.54856,3645.6,3645.5,3.2842]
[1754316646250,21.58155,3645.7,3645.5,3.2842]
[1754316646755,21.033,3645.7,3645.6,3.2842]
[1754316646944,0.54854,3645.8,3645.6,3.83276]
[1754316647250,1.0,3646.0,3645.9,2.4128]
[1754316647554,1.0,3646.0,3645.9,3.2842]
[1754316648150,3.2078,3646.5,3646.4,3.2842]
[1754316648352,6.16414,3646.5,3646.3,3.2842]
[1754316648549,0.54848,3646.2,3646.1,1.0276]
[1754316648753,2.4079,3646.2,3646.0,0.5485]
[1754316648946,2.4079,3646.2,3646.1,0.8714]
[1754316649148,3.75624,3646.5,3646.4,2.4128]
[1754316649347,3.75624,3646.5,3646.4,3.2842]
[1754316649545,21.56841,3646.6,3646.5,0.8714]
[1754316649746,2.91088,3646.9,3646.5,3.2842]
[1754316649954,2.91088,3646.9,3646.5,0.54841]
[1754316649955,0.54839,3646.8,3646.5,0.54841]
[1754316650152,21.52098,3646.9,3646.7,0.54839]
[1754316650353,0.50298,3646.9,3646.8,3.2842]
[1754316652058,21.009,3647.9,3647.7,0.54823]
[1754316652256,40.05517,3648.3,3647.8,0.8714]
[1754316652557,0.54821,3648.0,3647.8,0.8714]
[1754316652749,1.3739,3648.0,3647.8,1.41962]
[1754316652949,2.4079,3648.0,3647.8,1.41962]
[1754316653156,1.58221,3647.9,3647.7,1.0276]
[1754316653352,1.92214,3647.7,3647.3,3.2842]
[1754316653658,21.006,3648.2,3647.4,3.2078]
[1754316653859,2.9561,3648.1,3647.8,3.2842]
[1754316654153,21.55418,3648.2,3647.9,0.5482]
[1754316654353,2.4079,3648.4,3647.6,1.37065]
[1754316654548,23.4129,3648.4,3647.7,0.8714]
[1754316654749,1.9583,3648.7,3647.9,3.26954]
[1754316654954,1.9583,3648.7,3648.4,0.54813]
[1754316654955,0.54812,3648.6,3648.4,0.54813]
[1754316655156,2.95602,3648.6,3648.4,1.41953]
[1754316655354,1.3739,3648.6,3648.4,1.41953]
[1754316655560,4.5817,3648.8,3648.7,0.8714]
[1754316655757,1.36981,3649.9,3648.6,2.9609]
[1754316655758,1.36944,3650.9,3648.6,3.2078]
[1754316655950,1.9583,3650.5,3649.4,3.2078]
[1754316656150,0.54795,3649.7,3649.4,3.2078]
[1754316656354,1.034,3650.1,3649.4,3.2078]
[1754316656559,0.9243,3649.9,3649.5,0.54797]
[1754316656762,3.3322,3649.7,3649.6,0.54795]
[1754316656956,3.2078,3650.6,3649.6,0.54795]
[1754316656957,1.3739,3650.1,3649.9,0.54791]
[1754316657261,1.92171,3650.6,3650.3,0.8714]
[1754316657562,0.9243,3651.7,3650.5,4.0792]
[1754316657863,1.3739,3651.5,3651.1,0.54773]
[1754316658063,20.986,3651.9,3651.2,0.8714]
[1754316658255,1.3739,3651.4,3651.2,0.8714]
[1754316658562,1.3739,3651.3,3650.7,0.8714]
[1754316658857,1.36891,3652.3,3650.7,0.8714]
[1754316658858,1.3739,3651.8,3651.0,3.2078]
[1754316659064,1.3739,3651.8,3651.1,0.8714]
[1754316659266,3.2078,3652.4,3652.3,0.54755]
[1754316659267,1.3739,3652.4,3652.3,0.54755]
[1754316659456,3.2078,3653.7,3652.6,0.8714]
[1754316659650,1.3739,3652.9,3652.7,3.2078]
[1754316659855,1.3739,3652.9,3652.8,0.8714]
[1754316660151,1.3739,3653.6,3652.8,0.8714]
[1754316660351,0.5476,3652.0,3651.9,3.2078]
[1754316660655,1.3739,3651.9,3650.7,0.8714]
[1754316660855,1.3739,3651.9,3650.7,1.41919]
[1754316661050,1.3739,3651.7,3650.9,0.8714]
[1754316661259,1.3739,3651.7,3651.4,0.8714]
[1754316661457,0.54789,3650.1,3650.0,3.2078]
[1754316661655,0.54785,3650.3,3649.8,0.8714]
[1754316661957,0.54792,3649.9,3649.6,0.8714]
[1754316662264,1.3739,3649.6,3648.9,0.98658518]
[1754316662564,20.974,3649.9,3649.4,3.2078]
[1754316662764,0.54789,3650.1,3650.0,0.8714]
[1754316662953,0.54791,3649.9,3649.6,1.0276]
[1754316663154,0.54794,3649.7,3649.6,1.0276]
[1754316663361,22.3469,3649.7,3649.3,0.548]
[1754316663663,22.3469,3649.7,3649.1,3.2842]
[1754316664058,22.3469,3649.7,3649.0,3.2078]
[1754316664059,20.972,3649.6,3649.5,5.1068]
[1754316664261,1.92186,3649.6,3649.5,0.8714]
[1754316664560,0.54769,3651.4,3650.3,2.4128]
[1754316664762,20.972,3651.5,3650.7,0.8714]
[1754316664958,21.51968,3651.5,3650.7,0.8714]
[1754316665263,0.54774,3651.1,3651.0,0.8714]
[1754316665458,4.57687,3651.9,3651.0,0.8714]
[1754316665459,0.54766,3651.6,3651.0,0.8714]
[1754316665651,0.54769,3651.4,3651.1,1.3852]
[1754316665852,0.54767,3651.6,3651.3,0.8714]
[1754316666063,0.54767,3651.6,3651.4,1.0276]
[1754316666263,0.54769,3651.4,3650.9,4.2354]
[1754316666462,21.51868,3651.5,3651.0,2.4128]
[1754316666663,20.971,3651.4,3651.2,0.8714]
[1754316666867,20.971,3651.4,3651.3,6.492]
[1754316667070,0.54769,3651.4,3651.3,4.593]
[1754316667365,21.51469,3651.4,3650.9,3.2078]
[1754316667555,20.967,3651.4,3651.0,1.3852]
[1754316667752,4.5817,3651.9,3650.9,3.75556]
[1754316667753,4.5817,3651.9,3651.2,0.8714]
[1754316667961,0.54751,3652.6,3651.9,0.8714]
[1754316668259,20.966,3652.5,3652.2,3.2078]
[1754316668461,0.64882803,3652.4,3652.3,0.8714]
[1754316668662,20.966,3652.4,3652.3,1.3852]
[1754316668857,20.966,3652.4,3652.2,3.2078]
[1754316669065,22.3399,3652.3,3652.2,3.2078]
[1754316669359,1.92147,3652.2,3651.9,0.8714]
[1754316669664,1.3739,3652.0,3651.9,0.8714]
[1754316669864,21.5086,3652.0,3651.7,3.2078]
[1754316670063,1.4159,3651.6,3651.4,0.8543]
[1754316670259,0.54767,3651.5,3651.3,3.2078]
[1754316671060,1.3693,3651.2,3650.5,3.2078]
[1754316671264,0.54781,3650.6,3650.3,0.8543]
[1754316671560,0.5479,3650.0,3649.6,4.0621]
[1754316671765,1.36955,3650.6,3649.6,4.0621]
[1754316671766,1.91543,3649.8,3649.7,0.8543]
[1754316671966,1.91543,3649.8,3649.3,0.8543]
[1754316671967,1.3675,3649.6,3649.3,0.8543]
[1754316672174,1.3675,3649.6,3649.4,0.54798]
[1754316672362,20.96,3649.5,3649.4,1.1279]
[1754316672556,20.96,3649.6,3649.1,3.2078]
[1754316672759,20.96,3649.6,3649.5,2.2558]
[1754316672960,20.96,3649.6,3649.5,2.80377]
[1754316673161,20.96,3649.6,3649.5,4.0621]
[1754316673463,22.3275,3649.6,3649.5,4.0621]
[1754316673671,22.3759,3649.6,3649.5,4.0621]
[1754316674168,22.3275,3649.6,3649.5,4.0621]
[1754316674367,1.3675,3649.8,3649.6,0.8543]
[1754316674567,0.54789,3650.1,3649.9,0.8543]
[1754316674870,0.54787,3650.2,3650.0,1.4015]
[1754316675065,1.4159,3650.0,3649.5,3.2078]
[1754316675268,20.959,3650.1,3649.5,4.0621]
[1754316675468,20.959,3650.0,3649.6,0.54796]
[1754316675767,39.99481,3650.6,3650.2,0.54787]
[1754316675969,20.96,3651.1,3650.8,0.54777]
[1754316676168,0.5477,3651.3,3651.0,0.8543]
[1754316676369,1.96363,3651.1,3651.0,0.8543]
[1754316676567,1.3675,3651.4,3651.1,1.4015]
[1754316676767,22.3275,3651.3,3651.2,0.8543]
[1754316677164,3.2078,3651.5,3650.9,3.2078]
[1754316677469,1.3675,3651.9,3650.8,1.36944]
[1754316677470,20.959,3651.4,3651.3,0.5477]
[1754316677668,20.959,3651.4,3651.3,3.2078]
[1754316677869,39.99666,3651.7,3651.3,3.2078]
[1754316678173,21.50666,3651.6,3651.4,1.1279]
[1754316678673,21.50666,3651.6,3651.4,0.8543]
[1754316678674,1.96357,3651.5,3651.4,0.8543]
[1754316678969,1.4159,3651.5,3651.4,0.8543]
[1754316679471,22.3235,3651.5,3651.4,0.8543]
[1754316679668,23.02623897,3651.5,3651.4,0.8543]
[1754316679876,1.4159,3651.0,3650.9,3.2078]
[1754316680076,22.3719,3651.0,3650.9,4.0621]
[1754316680373,0.6552347,3651.0,3650.9,6.5915]
[1754316680573,0.6552347,3651.5,3651.4,0.54769]
[1754316680772,21.6102347,3651.5,3651.4,1.40199]
[1754316680972,21.6102347,3651.5,3651.4,3.93139]
[1754316681164,22.9777347,3651.5,3651.4,0.8543]
[1754316681369,23.99727542,3651.5,3650.9,3.2078]
[1754316681574,0.6552347,3651.4,3651.0,0.54775]
[1754316681874,0.6552347,3651.4,3650.9,3.2078]
[1754316681875,2.93479072,3651.1,3650.9,3.2078]
[1754316682067,1.4159,3650.8,3650.6,0.8543]
[1754316682374,22.9767347,3650.7,3650.6,0.8543]
[1754316682572,22.9767347,3650.7,3650.4,3.2078]
[1754316682573,0.54781,3650.6,3650.4,3.2078]
[1754316682777,2.0711347,3650.5,3650.4,3.2078]
[1754316682966,2.0711347,3650.5,3650.1,0.54787]
[1754316683171,2.0711347,3650.5,3649.9,3.2078]
[1754316683172,0.6552347,3650.4,3650.3,0.8543]
[1754316683473,2.0711347,3650.4,3650.3,0.8543]
[1754316684773,3.04227542,3650.4,3650.3,0.8543]
[1754316684969,23.0231347,3650.4,3650.3,0.8543]
[1754316685172,23.0231347,3650.4,3650.3,4.0621]
[1754316685570,3.05268319,3650.4,3650.3,4.0621]
[1754316685773,22.58878319,3650.4,3650.3,6.5915]
[1754316686076,21.6072347,3650.4,3650.3,6.5915]
[1754316686778,0.6552347,3650.4,3650.3,6.5915]
[1754316688674,0.98154849,3650.9,3650.8,0.54778]
[1754316688874,0.98154849,3651.1,3651.0,0.54775]
[1754316689075,20.949,3651.2,3651.0,3.93145]
[1754316689379,20.949,3651.2,3651.1,3.3837]
[1754316689580,22.3165,3651.2,3651.1,0.8543]
[1754316690076,40.43054849,3651.7,3651.6,0.8543]
[1754316690276,0.54768,3651.5,3651.3,0.8543]
[1754316690582,2.0712,3651.2,3651.1,0.8543]
[1754316690772,23.0182,3651.2,3651.1,0.8543]
[1754316691174,2.0712,3651.6,3651.3,0.8543]
[1754316691376,2.0712,3651.6,3651.4,1.40199]
[1754316691578,2.0712,3651.6,3651.4,0.54769]
[1754316691977,2.0712,3651.6,3651.5,0.8543]
[1754316691978,0.7037,3651.6,3651.5,0.8543]
[1754316692282,41.5202,3651.7,3651.6,1.40196]
[1754316692478,62.4642,3651.7,3651.6,1.40196]
[1754316692978,62.4642,3651.7,3651.6,0.8543]
[1754316693168,61.9951554,3651.7,3651.3,4.0621]
[1754316693371,0.54766,3651.6,3651.3,3.75549]
[1754316693567,2.0712,3651.4,3651.3,3.75549]
[1754316693773,2.0712,3651.4,3651.3,3.2078]
[1754316693774,23.0142,3651.4,3651.3,3.2078]
[1754316693980,0.5477,3651.3,3651.1,0.8543]
[1754316694183,2.0712,3651.3,3651.2,1.40201]
[1754316694884,2.0712,3651.3,3651.2,0.8543]
[1754316695084,21.4907,3651.4,3651.1,0.54772]
[1754316695274,2.0712,3651.2,3651.1,1.40202]
[1754316696080,23.0112,3651.2,3651.1,1.40202]
[1754316696380,23.0112,3651.2,3651.1,4.60982]
[1754316696977,0.98168527,3651.4,3651.3,1.402]
[1754316697183,23.98888527,3651.4,3651.3,1.402]
[1754316697483,23.0072,3651.4,3651.3,1.402]
[1754316697680,23.0072,3651.4,3651.3,0.5477]
[1754316697880,2.61891,3651.3,3651.1,3.2078]
[1754316698077,0.98168527,3651.4,3651.2,0.54772]
[1754316698284,22.3025,3651.3,3651.2,1.40202]
[1754316698582,0.98168527,3651.4,3651.2,0.54772]
[1754316698789,0.12965498,3651.5,3651.4,3.07709]
[1754316699179,23.0052,3651.5,3651.4,0.54769]
[1754316699482,23.13485498,3651.5,3651.4,1.40199]
[1754316699678,23.13485498,3651.5,3651.1,3.2078]
[1754316699679,0.54769,3651.4,3651.2,0.54772]
[1754316699880,2.0712,3651.2,3651.1,3.2078]
[1754316700077,2.1221,3651.1,3650.7,4.0816]
[1754316700272,20.932,3651.2,3650.7,0.8738]
[1754316700477,2.1221,3650.8,3650.3,0.8738]
[1754316700679,2.1221,3650.4,3650.2,3.2078]
[1754316700875,1.36968,3650.2,3649.4,3.2078]
[1754316701087,1.4539,3649.5,3649.4,4.0816]
[1754316701281,2.1221,3650.0,3649.7,0.54793]
[1754316701476,2.67004,3649.8,3649.7,0.8738]
[1754316701677,0.54797,3649.5,3649.4,3.2078]
[1754316701881,23.0521,3649.5,3649.4,4.0816]
[1754316702589,1.21623,3649.1,3649.0,0.8738]
[1754316702888,0.54796,3649.6,3649.2,0.54801]
[1754316703080,21.47798,3649.5,3649.4,2.4206]
[1754316703280,22.93188,3649.5,3649.4,0.8738]
[1754316703584,2.1221,3649.5,3649.4,0.8738]
[1754316703784,20.929,3649.5,3649.4,3.2944]
[1754316704081,1.21619,3649.4,3649.1,0.8738]
[1754316704282,2.00191,3649.3,3649.0,2.4206]
[1754316704484,20.928,3649.2,3649.1,3.2944]
[1754316704687,0.54797,3649.5,3649.4,1.032]
[1754316704890,20.928,3649.5,3649.4,3.2944]
[1754316705187,1.4539,3650.2,3649.5,0.8738]
[1754316705389,0.54791,3650.0,3649.7,3.2944]
[1754316705686,22.14311,3649.9,3649.8,0.8738]
[1754316705887,23.0491,3649.9,3649.8,0.8738]
[1754316706080,20.927,3649.9,3649.8,3.2944]
[1754316706984,20.927,3649.9,3649.8,0.8738]
[1754316706985,23.0491,3649.9,3649.8,0.8738]
[1754316707983,1.4539,3649.9,3649.8,1.9058]
[1754316708288,23.0471,3649.9,3649.8,0.8738]
[1754316708488,22.3789,3649.9,3649.8,0.8738]
[1754316708690,22.3789,3649.9,3649.8,1.9058]
[1754316708992,0.54791,3650.0,3649.8,3.2944]
[1754316709184,39.44,3650.3,3650.0,0.8738]
[1754316709385,23.59397,3650.2,3650.1,0.8738]
[1754316709581,2.67003,3649.8,3649.7,0.8738]
[1754316709893,2.67003,3649.8,3648.9,0.98658518]
[1754316709894,1.4539,3649.0,3648.9,0.98658518]
[1754316710085,23.0451,3649.0,3648.9,0.98658518]
[1754316710386,23.0451,3649.0,3648.9,1.86038518]
[1754316710784,0.54798,3649.5,3649.0,0.8738]
[1754316710986,21.469,3649.4,3649.3,0.8738]
[1754316711188,23.5911,3649.4,3649.3,0.8738]
[1754316711899,23.5911,3649.4,3649.3,4.0816]
[1754316712087,2.1221,3650.0,3649.4,0.8738]
[1754316712284,21.46891,3649.9,3649.7,0.8738]
[1754316712485,21.46891,3649.9,3649.8,1.032]
[1754316712683,21.46891,3649.9,3649.8,1.9058]
[1754316712880,23.59101,3649.9,3649.8,0.8738]
[1754316713084,0.54797,3649.6,3649.3,3.2078]
[1754316713283,22.3729,3649.5,3649.4,0.8738]
[1754316713489,20.919,3649.5,3649.4,3.2944]
[1754316713682,0.6682,3650.1,3649.5,0.8738]
[1754316713888,0.54795,3649.7,3649.5,0.8738]
[1754316714087,0.54794,3649.8,3649.6,2.4206]
[1754316714291,2.00184,3649.8,3649.7,0.8738]
[1754316714489,22.91884,3649.8,3649.7,0.8738]
[1754316714891,21.46494,3649.8,3649.7,3.2944]
[1754316715089,30.84684647,3652.6,3649.8,2.2624]
[1754316715090,0.54791,3650.0,3649.8,2.2624]
[1754316715288,0.54793,3649.8,3649.4,3.2944]
[1754316715494,2.67003,3649.8,3649.7,4.0816]
[1754316716195,0.6682,3649.8,3649.7,4.0816]
[1754316716485,1.4539,3650.1,3649.9,1.9058]
[1754316716486,0.54789,3650.1,3649.9,1.9058]
[1754316716685,40.1082,3650.3,3649.9,1.9058]
[1754316716686,1.4539,3650.2,3650.0,0.5479]
[1754316716889,39.44,3650.3,3650.2,1.3886]
[1754316717088,60.352,3650.3,3650.2,3.2944]